Workbook

Sheet Introduction

Sheet Summary
B1: GENERAL TECHNOLOGY QUESTIONS
B2: ="1." -> 1. | C2: Is your technology specific to a type of reprocessing? | E2: Aqueous
B3: ="2." -> 2. | C3: Is your technology specific to a type of advanced reactor? | E3: Generic
B4: ="3." -> 3. | C4: Is your technology specific to a type of fuel? | E4: Generic
B6: FACILITY COSTS
C7: ='Reprocesed Fuel Costs'!B31 -> Facility CAPEX | E7: ='Reprocesed Fuel Costs'!D31 -> 6964704273 | G7: $
C8: ='Reprocesed Fuel Costs'!B33 -> Facility OPEX (Annual) | E8: ='Reprocesed Fuel Costs'!D33 -> 348270040.7 | G8: $
C9: ='Reprocesed Fuel Costs'!B36 -> Ammortized CAPEX (Annual) | E9: ='Reprocesed Fuel Costs'!D36 -> 381503763.7 | G9: $
C10: ='Reprocesed Fuel Costs'!B37 -> Total Annual Cost | E10: ='Reprocesed Fuel Costs'!D37 -> 729773804.4 | G10: $
C11: ='Reprocesed Fuel Costs'!B38 -> Throughput | E11: 200 | G11: MT
C12: ='Reprocesed Fuel Costs'!B39 -> Fuel Reprocessing Unit Cost | E12: ='Reprocesed Fuel Costs'!D39 -> 3648.869022 | G12: $/kgHM
B13: FUEL COSTS
C14: ='Reprocesed Fuel Costs'!B29 -> Reprocessing throughput requirement (annual) | E14: =IF($E$3="Sodium Fast Reactor", 'Reprocesed Fuel Costs'!E29, 0)+IF($E$3="Gas Cooled Reactor", 'Reprocesed Fuel Costs'!F29, 0)+IF($E$3="Molten Salt Reactor", 'Reprocesed Fuel Costs'!G29, 0)+IF($E$3="Advanced LWR", 'Reprocesed Fuel Costs'!H29, 0)+IF($E$3="Generic", 'Reprocesed Fuel Costs'!D29, 0) -> 13.33187231 | G14: ='Reprocesed Fuel Costs'!I29 -> tU
C15: ='Reprocesed Fuel Costs'!B47 -> Tails Disposal Unit Cost | E15: ='Reprocesed Fuel Costs'!D47 -> -11 | G15: ='Reprocesed Fuel Costs'!I47 -> $/kg
C16: ='Reprocesed Fuel Costs'!B48 -> Tails Depletion | E16: =IF($E$3="Sodium Fast Reactor", 'Reprocesed Fuel Costs'!E48, 0)+IF($E$3="Gas Cooled Reactor", 'Reprocesed Fuel Costs'!F48, 0)+IF($E$3="Molten Salt Reactor", 'Reprocesed Fuel Costs'!G48, 0)+IF($E$3="Advanced LWR", 'Reprocesed Fuel Costs'!H48, 0)+IF($E$3="Generic", 'Reprocesed Fuel Costs'!D48, 0) -> -5968.679231 | G16: ='Reprocesed Fuel Costs'!I48 -> $
C17: ='Reprocesed Fuel Costs'!B49 -> Fuel Fabrication Multiplier | E17: ='Reprocesed Fuel Costs'!D49 -> 1
C18: ='Reprocesed Fuel Costs'!B50 -> Fuel Fabrication Unit Cost | E18: =IF($E$3="Sodium Fast Reactor", 'Reprocesed Fuel Costs'!E50, 0)+IF($E$3="Gas Cooled Reactor", 'Reprocesed Fuel Costs'!F50, 0)+IF($E$3="Molten Salt Reactor", 'Reprocesed Fuel Costs'!G50, 0)+IF($E$3="Advanced LWR", 'Reprocesed Fuel Costs'!H50, 0)+IF($E$3="Generic", 'Reprocesed Fuel Costs'!D50, 0) -> 1000 | G18: ='Reprocesed Fuel Costs'!I50 -> $/kg
C19: ='Reprocesed Fuel Costs'!B51 -> Fuel Fabrication | E19: =IF($E$3="Sodium Fast Reactor", 'Reprocesed Fuel Costs'!E51, 0)+IF($E$3="Gas Cooled Reactor", 'Reprocesed Fuel Costs'!F51, 0)+IF($E$3="Molten Salt Reactor", 'Reprocesed Fuel Costs'!G51, 0)+IF($E$3="Advanced LWR", 'Reprocesed Fuel Costs'!H51, 0)+IF($E$3="Generic", 'Reprocesed Fuel Costs'!D51, 0) -> 1753341.688 | G19: ='Reprocesed Fuel Costs'!I51 -> $
C20: ='Reprocesed Fuel Costs'!B52 -> Fuel Reprocessing Unit Cost | E20: =Repro___kg -> 3648.869022 | G20: ='Reprocesed Fuel Costs'!I52 -> $/kg
C21: ='Reprocesed Fuel Costs'!B53 -> Fuel Reprocessing | E21: =IF($E$3="Sodium Fast Reactor", 'Reprocesed Fuel Costs'!E53, 0)+IF($E$3="Gas Cooled Reactor", 'Reprocesed Fuel Costs'!F53, 0)+IF($E$3="Molten Salt Reactor", 'Reprocesed Fuel Costs'!G53, 0)+IF($E$3="Advanced LWR", 'Reprocesed Fuel Costs'!H53, 0)+IF($E$3="Generic", 'Reprocesed Fuel Costs'!D53, 0) -> 48646255.86 | G21: ='Reprocesed Fuel Costs'!I53 -> $
C22: ='Reprocesed Fuel Costs'!B54 -> Spent Fuel Storage | E22: =SNF___kg -> 288.92 | G22: ='Reprocesed Fuel Costs'!I54 -> $/kg
C23: ='Reprocesed Fuel Costs'!B55 -> Spent Fuel Disposition | E23: =IF($E$3="Sodium Fast Reactor", 'Reprocesed Fuel Costs'!E55, 0)+IF($E$3="Gas Cooled Reactor", 'Reprocesed Fuel Costs'!F55, 0)+IF($E$3="Molten Salt Reactor", 'Reprocesed Fuel Costs'!G55, 0)+IF($E$3="Advanced LWR", 'Reprocesed Fuel Costs'!H55, 0)+IF($E$3="Generic", 'Reprocesed Fuel Costs'!D55, 0) -> 195288.5185 | G23: ='Reprocesed Fuel Costs'!I55 -> $
C24: ='Reprocesed Fuel Costs'!B56 -> Total Fuel Cost | E24: =IF($E$3="Sodium Fast Reactor", 'Reprocesed Fuel Costs'!E56, 0)+IF($E$3="Gas Cooled Reactor", 'Reprocesed Fuel Costs'!F56, 0)+IF($E$3="Molten Salt Reactor", 'Reprocesed Fuel Costs'!G56, 0)+IF($E$3="Advanced LWR", 'Reprocesed Fuel Costs'!H56, 0)+IF($E$3="Generic", 'Reprocesed Fuel Costs'!D56, 0) -> 50588917.39 | G24: ='Reprocesed Fuel Costs'!I56 -> $
C25: ='Reprocesed Fuel Costs'!B57 -> Specific Fuel Cost | E25: =IF($E$3="Sodium Fast Reactor", 'Reprocesed Fuel Costs'!E57, 0)+IF($E$3="Gas Cooled Reactor", 'Reprocesed Fuel Costs'!F57, 0)+IF($E$3="Molten Salt Reactor", 'Reprocesed Fuel Costs'!G57, 0)+IF($E$3="Advanced LWR", 'Reprocesed Fuel Costs'!H57, 0)+IF($E$3="Generic", 'Reprocesed Fuel Costs'!D57, 0) -> 74843.87778 | G25: ='Reprocesed Fuel Costs'!I57 -> $/kg
C26: ='Reprocesed Fuel Costs'!B58 -> Specific Fuel Cost | E26: =IF($E$3="Sodium Fast Reactor", 'Reprocesed Fuel Costs'!E58, 0)+IF($E$3="Gas Cooled Reactor", 'Reprocesed Fuel Costs'!F58, 0)+IF($E$3="Molten Salt Reactor", 'Reprocesed Fuel Costs'!G58, 0)+IF($E$3="Advanced LWR", 'Reprocesed Fuel Costs'!H58, 0)+IF($E$3="Generic", 'Reprocesed Fuel Costs'!D58, 0) -> 0.08662485854 | G26: ='Reprocesed Fuel Costs'!I58 -> $/kWh
E27: =IF($E$3="Sodium Fast Reactor", 'Reprocesed Fuel Costs'!E59, 0)+IF($E$3="Gas Cooled Reactor", 'Reprocesed Fuel Costs'!F59, 0)+IF($E$3="Molten Salt Reactor", 'Reprocesed Fuel Costs'!G59, 0)+IF($E$3="Advanced LWR", 'Reprocesed Fuel Costs'!H59, 0)+IF($E$3="Generic", 'Reprocesed Fuel Costs'!D59, 0) -> 8.662485854 | G27: ='Reprocesed Fuel Costs'!I59 -> c/kWh
C28: ='Reprocesed Fuel Costs'!B60 -> HALEU Costs (Comparison) | E28: =IF($E$3="Sodium Fast Reactor", 'Reprocesed Fuel Costs'!E60, 0)+IF($E$3="Gas Cooled Reactor", 'Reprocesed Fuel Costs'!F60, 0)+IF($E$3="Molten Salt Reactor", 'Reprocesed Fuel Costs'!G60, 0)+IF($E$3="Advanced LWR", 'Reprocesed Fuel Costs'!H60, 0)+IF($E$3="Generic", 'Reprocesed Fuel Costs'!D60, 0) -> 1.233729763 | G28: ='Reprocesed Fuel Costs'!I60 -> c/kWh

Sheet Aqueous Reprocessing Costs
B1: Throughput (MT/yr) | C1: =Throughput -> 200
B2: CAPITAL COSTS
H3: Percentage reduction
B4: Facility | C4: $K (Original) | D4: $K (Reduced) | E4: % (Original) | F4: % | G4: Modified | H4: (0-100) | I4: Justification
B5: Receiving | C5: =$C$31*E5/100 -> 515439.6602 | D5: =C5*(1-H5/100) -> 515439.6602 | E5: 7.4 | F5: =E5*(1-H5/100) -> 7.4 | G5: No
B6: Mechanical Feed Prep | C6: =$C$31*E6/100 -> 863709.7009 | D6: 863709.7009 | E6: 12.4 | F6: =E6*(1-H6/100) -> 12.4 | G6: No
B7: Tritium Confinement | C7: 241699.4082 | D7: 241699.4082 | E7: 3.47 | F7: 3.47 | G7: No
B8: Dissolution | C8: 541211.6432 | D8: 541211.6432 | E8: 7.77 | F8: 7.77 | G8: No
B9: Feed Prep | C9: 45971.64537 | D9: 45971.64537 | E9: 0.66 | F9: 0.66 | G9: No
B10: Dissolver off-gas | C10: 276526.4123 | D10: 276526.4123 | E10: 3.97 | F10: 3.97 | G10: No
B11: Vessel off-gas | C11: 80798.64944 | D11: 80798.64944 | E11: 1.16 | F11: 1.16 | G11: No
B12: Solvent ext, U | C12: 91943.29074 | D12: 91943.29074 | E12: 1.32 | F12: 1.32 | G12: No
B13: Solvent ext, Pu | C13: 103087.932 | D13: 103087.932 | E13: 1.48 | F13: 1.48 | G13: No
B14: Solvent Treatment | C14: 68957.46805 | D14: 68957.46805 | E14: 0.99 | F14: 0.99 | G14: No
B15: Acid and Waste Recovery | C15: 126770.2948 | D15: 126770.2948 | E15: 1.82 | F15: 1.82 | G15: No
B16: HLW concentration | C16: 68957.46805 | D16: 68957.46805 | E16: 0.99 | F16: 0.99 | G16: No
B17: ILW concentration | C17: 91943.29074 | D17: =C17*(1-H17/100) -> 91943.29074 | E17: 1.32 | F17: 1.32 | G17: No
B18: LEU purification | C18: 45971.64537 | D18: 45971.64537 | E18: 0.66 | F18: 0.66 | G18: No
B19: LEU conversion | C19: 264685.2309 | D19: 264685.2309 | E19: 3.8 | F19: 3.8 | G19: No
B20: Fissile conversion | C20: 149756.1175 | D20: 149756.1175 | E20: 2.15 | F20: 2.15 | G20: No
B21: Head-end off-gas | C21: 22985.82268 | D21: 22985.82268 | E21: 0.33 | F21: 0.33 | G21: No
B22: HLW solution storage | C22: 207568.9442 | D22: 207568.9442 | E22: 2.98 | F22: 2.98 | G22: No
B23: HLW solidification | C23: 322498.0577 | D23: 322498.0577 | E23: 4.63 | F23: 4.63 | G23: No
B24: Fissile product storage | C24: 22985.82268 | D24: 22985.82268 | E24: 0.33 | F24: 0.33 | G24: No
B25: Cladding storage | C25: 690271.2206 | D25: 690271.2206 | E25: 9.91 | F25: 9.91 | G25: No
B26: Fuel storage | C26: 795448.7729 | D26: 795448.7729 | E26: 11.42 | F26: 11.42 | G26: No
B27: Kr storage | C27: 331553.0787 | D27: 331553.0787 | E27: 4.76 | F27: 4.76 | G27: No
B28: Cs & Sr solidification and storage | C28: 663106.1574 | D28: 663106.1574 | E28: 9.52 | F28: 9.52 | G28: No
B29: Tc solidification and storage | C29: 132342.6155 | D29: 132342.6155 | E29: 1.9 | F29: 1.9 | G29: No
B30: Iodine solidification and storage | C30: =$C$31*E30/100 -> 198513.9232 | D30: =C30*(1-H30/100) -> 198513.9232 | E30: 2.85 | F30: 2.85 | G30: No
B31: Total | C31: =C47*C1/(OpexFraction/100+((C34/100)/(1-(1+C34/100)^-C33))) -> 6965400.814 | D31: =SUM(D5:D30) -> 6964704.273 | E31: =SUM(E5:E30) -> 99.99 | F31: =SUM(F5:F30) -> 99.99
B32: Facility Cost Reduction (%) | F32: =(C31-D31)/C31*100 -> 0.01
B33: Facility Lifetime (yrs) | C33: ='Reprocesed Fuel Costs'!D34 -> 50
B34: Discount Rate (%) | C34: ='Reprocesed Fuel Costs'!D35 -> 5
B35: Annualized Capital | C35: =-PMT(C34/100,C33,C31) -> 381541.9179 | D35: =-PMT($C$34/100,$C$33,D31) -> 381503.7637
B36: Specific Annualized Capital ($/kg) | C36: =C35/C1 -> 1907.70959 | D36: =D35/$C$1 -> 1907.518819
B37: ANNUAL OPERATING COSTS
B38: Staffing | C38: =$C$44*E38/100 -> 62688.60732 | D38: =C38*(1-H38/100) -> 62688.60732 | E38: 18 | F38: =E38*(1-H38/100) -> 18 | G38: No
B39: Materials & Services | C39: =$C$44*E39/100 -> 48757.80569 | D39: =C39*(1-H39/100) -> 48757.80569 | E39: 14 | F39: =E39*(1-H39/100) -> 14 | G39: No
B40: Process Chemicals | C40: 10448.10122 | D40: 10448.10122 | E40: 3 | F40: 3 | G40: No
B41: Spare Parts | C41: 13930.80163 | D41: 13930.80163 | E41: 4 | F41: 4 | G41: No
B42: Product & Waste Containers | C42: 195031.2228 | D42: 195031.2228 | E42: 56 | F42: 56 | G42: No
B43: Utilities | C43: 17413.50203 | D43: 17413.50203 | E43: 5 | F43: 5 | G43: No
B44: Total | C44: =C46*C1 -> 348270.0407 | D44: =SUM(D38:D43) -> 348270.0407 | E44: =SUM(E38:E43) -> 100 | F44: =SUM(F38:F43) -> 100
B45: Annual Operating Cost Reduction (%) | F45: =(C44-D44)/C44*100 -> 0
B46: Specific Operating Cost ($/kg) | C46: =C47-C36 -> 1741.350203 | D46: =D44/$C$1 -> 1741.350203
B47: Specific Capital and Operating Cost ($/kg) | C47: =(IF(Summary!E4="U/TRU",2217,0)+IF(Summary!E4="U+Pu",1633,0)+IF(Summary!E4="Generic",1633,0))*(800/C1)*(C1/800)^0.42 -> 3649.059793 | D47: =D36+D46 -> 3648.869022

Sheet Pyro Reprocessing Costs
B1: CAPITAL COSTS
B2: Throughput (MT/yr) | C2: 100 | E2: 200 | H2: 400 | K2: Percentage reduction
B3: Facility | C3: $K | D3: % | E3: $K (original) | F3: $K (reduced) | G3: % | H3: $K | I3: % | J3: Modified | K3: (0-100) | L3: Justification
B4: Fuel processing facility | C4: 105679 | D4: =C4/$C$28*100 -> 26.5782895 | E4: 173785 | F4: =E4*(1-K4/100) -> 173785 | G4: =AVERAGE(D4,I4)*(1-K4/100) -> 27.78221638 | H4: 264200 | I4: =H4/$H$28*100 -> 28.98614326 | J4: No
B5: Protected Area Receiving | C5: 4580 | D5: 1.15187091 | E5: 6742 | F5: =E5*(1-K5/100) -> 6742 | G5: 1.077871887 | H5: 9150 | I5: 1.003872865 | J5: No
B6: Waste Storage Facility | C6: 9150 | D6: 2.301226818 | E6: 19756 | F6: 19756 | G6: 3.158359138 | H6: 36600 | I6: 4.015491459 | J6: No
B7: Lab & Operations Bldg | C7: 22388 | D7: 5.630586448 | E7: 32976 | F7: 32976 | G7: 5.271764638 | H7: 44780 | I7: 4.912942829 | J7: No
B8: Maintenance & Mockup | C8: 11288 | D8: 2.838934243 | E8: 16624 | F8: 16624 | G8: 2.657576988 | H8: 22570 | I8: 2.476219733 | J8: No
B9: Utility Building | C9: 15623 | D9: 3.929187604 | E9: 23012 | F9: 23012 | G9: 3.678857574 | H9: 31250 | I9: 3.428527543 | J9: No
B10: Warehouse & Staging | C10: 4948 | D10: 1.244422983 | E10: 7286 | F10: 7286 | G10: 1.16474169 | H10: 9890 | I10: 1.085060397 | J10: No
B11: Generator Bldg | C11: 3192 | D11: 0.8027886342 | E11: 5798 | F11: 5798 | G11: 0.926919019 | H11: 9580 | I11: 1.051049404 | J11: No
B12: Emergency Op Center | C12: 7791 | D12: 1.959438048 | E12: 8805 | F12: 8805 | G12: 1.407599261 | H12: 7800 | I12: 0.8557604748 | J12: No
B13: Fire Station | C13: 3954 | D13: 0.9944317856 | E13: 4469 | F13: 4469 | G13: 0.714447398 | H13: 3960 | I13: 0.4344630103 | J13: No
B14: Site Work | C14: 34032 | D14: 8.559054762 | E14: 50127 | F14: 50127 | G14: 8.013605299 | H14: 68070 | I14: 7.468155836 | J14: No
B15: Physical Protection System | C15: 30120 | D15: 7.575185984 | E15: 49531 | F15: 49531 | G15: 7.918282977 | H15: 75300 | I15: 8.261379969 | J15: No
B16: Design Engineering | C16: 45904 | D16: 11.54486512 | E16: 67612 | F16: 67612 | G16: 10.80880238 | H16: 91810 | I16: 10.07273964 | J16: No
B17: Process Equipment & Support
B18: Process Equipment | C18: 27381 | D18: =C18/$C$28*100 -> 6.88632694 | E18: 40037 | F18: =E18*(1-K18/100) -> 40037 | G18: =AVERAGE(D18,I18)*(1-K18/100) -> 6.400474188 | H18: 53910 | I18: =H18/$H$28*100 -> 5.914621436 | J18: No
B19: Transfer Locks & F-T | C19: 12636 | D19: 3.177956511 | E19: 19372 | F19: =E19*(1-K19/100) -> 19372 | G19: =AVERAGE(D19,I19)*(1-K19/100) -> 3.09698181 | H19: 27490 | I19: 3.016007109 | J19: No
B20: Overhead Lifting & Robotics | C20: 29259 | D20: 7.358644313 | E20: 43635 | F20: 43635 | G20: 6.975645678 | H20: 60090 | I20: 6.592647043 | J20: No
B21: Electrical Systems | C21: 2814 | D21: 0.7077215591 | E21: 6077 | F21: 6077 | G21: 0.9715443018 | H21: 11260 | I21: 1.235367044 | J21: No
B22: Monitoring & Control System | C22: 5600 | D22: 1.408401113 | E22: 12091 | F22: 12091 | G22: 1.932984828 | H22: 22400 | I22: 2.457568543 | J22: No
B23: MC&A | C23: 1288 | D23: 0.3239322559 | E23: 2780 | F23: 2780 | G23: 0.4444767975 | H23: 5150 | I23: 0.5650213392 | J23: No
B24: Safeguards & Security Eqpmt | C24: 5806 | D24: 1.460210154 | E24: 8506 | F24: 8506 | G24: 1.359857016 | H24: 11480 | I24: 1.259503878 | J24: No
B25: Analytic Lab Eqpmt | C25: 4750 | D25: 1.194625944 | E25: 10256 | F25: 10256 | G25: 1.639585345 | H25: 19000 | I25: 2.084544746 | J25: No
B26: Licensing Support | C26: 6000 | D26: 1.509001192 | E26: 8837 | F26: 8837 | G26: 1.412777884 | H26: 12000 | I26: 1.316554577 | J26: No
B27: Start-up Materials | C27: 3431 | D27: 0.8628971817 | E27: 7410 | F27: 7410 | G27: 1.184627522 | H27: 13730 | I27: 1.506357861 | J27: No
B28: Total | C28: =SUM(C4:C27) -> 397614 | D28: 100 | E28: 625524 | F28: 625524 | G28: 100 | H28: 911470 | I28: 100
B29: Facility Cost Reduction (%) | G29: =(E28-F28)/E28*100 -> 0
B30: Facility Lifetime | C30: 50 | E30: ='Reprocesed Fuel Costs'!D34 -> 50 | H30: 50
B31: Discount Rate | C31: 5 | E31: ='Reprocesed Fuel Costs'!D35 -> 5 | H31: 5
B32: Annualized Capital | C32: =-PMT(C31/100,C30,C28) -> 21779.9969 | E32: =-PMT($E$31/100,$E$30,E28) -> 34264.16269 | F32: =-PMT($E$31/100,$E$30,F28) -> 34264.16269 | H32: =-PMT(H31/100,H30,H28) -> 49927.35109
B33: Specific Annualized Capital | C33: =C32/C2 -> 217.799969 | E33: =E32/$E$2 -> 171.3208134 | F33: =F32/$E$2 -> 171.3208134 | H33: =H32/H2 -> 124.8183777
B34: ANNUAL OPERATING COSTS
B35: Staffing | C35: 41790 | D35: =C35/$C$41*100 -> 78.66352941 | E35: 53477 | F35: =E35*(1-K35/100) -> 53477 | G35: =AVERAGE(D35,I35)*(1-K35/100) -> 70.69843137 | H35: 56460 | I35: =H35/$H$41*100 -> 62.73333333 | J35: No
B36: Materials & Services | C36: 4180 | D36: =C36/$C$41*100 -> 7.868235294 | E36: 5039 | F36: =E36*(1-K36/100) -> 5039 | G36: =AVERAGE(D36,I36)*(1-K36/100) -> 6.661895425 | H36: 4910 | I36: =H36/$H$41*100 -> 5.455555556 | J36: No
B37: Process Chemicals | C37: 579 | D37: 1.089882353 | E37: 1387 | F37: 1387 | G37: 1.833830065 | H37: 2320 | I37: 2.577777778 | J37: No
B38: Spare Parts | C38: 120 | D38: 0.2258823529 | E38: 287 | F38: 287 | G38: 0.3796078431 | H38: 480 | I38: 0.5333333333 | J38: No
B39: Product & Waste Containers | C39: 5472 | D39: 10.30023529 | E39: 13094 | F39: 13094 | G39: 17.31122876 | H39: 21890 | I39: 24.32222222 | J39: No
B40: Utilities | C40: 984 | D40: 1.852235294 | E40: 2356 | F40: 2356 | G40: 3.115006536 | H40: 3940 | I40: 4.377777778 | J40: No
B41: Total | C41: =SUM(C35:C40) -> 53125 | D41: 100 | E41: =SUM(E35:E40) -> 75640 | F41: =SUM(F35:F40) -> 75640 | G41: =SUM(G35:G40) -> 100 | H41: =SUM(H35:H40) -> 90000 | I41: 100
B42: Annual Operating Cost Reduction (%) | G42: =(E41-F41)/E41*100 -> 0
B43: Specific Operating Cost | C43: =C41/C2 -> 531.25 | E43: =E41/$E$2 -> 378.2 | F43: =F41/$E$2 -> 378.2 | H43: =H41/H2 -> 225
B44: Specific Capital and Operating Cost | C44: =C33+C43 -> 749.049969 | E44: =E33+E43 -> 549.5208134 | F44: =F33+F43 -> 549.5208134 | H44: =H33+H43 -> 349.8183777

Sheet HALEU Fuel Costs (hidden)
B1: ONCE THROUGH FHR FUEL CYCLE
B2: Description | C2: Symbol | D2: Value | I2: Unit | J2: Equation | K2: Source
B3: Vendor | D3: Baseline | E3: Terrapower | F3: X-Energy | G3: Kairos Power | H3: NuScale
B4: Burnup | C4: BU | D4: ='Reprocesed Fuel Costs'!D3 -> 100000 | E4: 70000 | F4: 160000 | G4: 193600 | H4: 42400 | I4: MWd/MT
B5: Electric Power | C5: P_e | D5: ='Reprocesed Fuel Costs'!D4 -> 200 | E5: 345 | F5: 80 | G5: 140 | H5: 77 | I5: MW
B6: Efficiency | C6: eff | D6: ='Reprocesed Fuel Costs'!D5 -> 40 | E6: 38 | F6: 40 | G6: 43.8 | H6: =H5/H7*100 -> 30.8 | I6: %
B7: Thermal Power | C7: P_th | D7: ='Reprocesed Fuel Costs'!D6 -> 500 | E7: =P_e/(eff/100) -> 907.8947368 | F7: =F5/F6*100 -> 200 | G7: =G5/G6*100 -> 319.6347032 | H7: 250 | I7: MW
B8: Capacity Factor | C8: CF | D8: ='Reprocesed Fuel Costs'!D7 -> 90 | E8: 90 | F8: 90 | G8: 90 | H8: 90 | I8: %
B9: Average Uranium Loading | C9: Loading | D9: ='Reprocesed Fuel Costs'!D8 -> 2027.777778 | E9: =P_th/BU*365*1000/(CF/100) -> 5260.025063 | F9: =F7/F4*365*1000/(F8/100) -> 506.9444444 | G9: =G7/G4*365*1000/(G8/100) -> 669.5745332 | H9: =H7/H4*365*1000/(H8/100) -> 2391.247379 | I9: kg
B10: Average Fuel Enrichment | C10: %E | D10: 15 | E10: 13 | F10: 15.5 | G10: 19.55 | H10: 4.32 | I10: %
B11: Fuel Cycle Length | C11: FCL | D11: ='Reprocesed Fuel Costs'!D10 -> 36 | E11: 36 | F11: 18 | G11: 18 | H11: 18 | I11: months
B12: Mass of Heavy Metal per Core | D12: ='Reprocesed Fuel Costs'!D11 -> 2027.777778 | E12: =E9 -> 5260.025063 | F12: =F9 -> 506.9444444 | G12: 669.5745332 | H12: 2391.247379 | I12: kg
B13: Uranium in Tailings | C13: %T | D13: 0.2 | I13: %
B14: U-235 in Natural Uranium | C14: %U235 | D14: 0.711 | I14: %
B15: Uranium in U3O8 | C15: %U_ore | D15: =3*(235*0.0072+238*0.9928)/(3*(235*0.0072+238*0.9928)+16*8)*100 -> 84.79692974 | I15: % | J15: 3*mass_U/(3*mass_U+8*mass_O)
B16: Annual Uranium Requirement
B17: Stage 1: Solved by global total and isotopic mass balances up to HALEU enrichment (constraint equations)
B18: Uranium Product | C18: Product | D18: =D12*12/D11 -> 675.9259259 | E18: =E12*12/FCL -> 1753.341688 | F18: =F12*12/F11 -> 337.962963 | G18: =G12*12/G11 -> 446.3830221 | H18: =H12*12/H11 -> 1594.16492 | I18: kg
B19: Uranium Feed | C19: Feed | D19: =D18*(D10-T_)/(U235_-T_) -> 19576.71958 | E19: =Product*(Enrichment-T_)/(U235_-T_) -> 43919.32211 | F19: =F18*(F10-T_)/(U235_-T_) -> 10119.04762 | G19: =G18*(G10-T_)/(U235_-T_) -> 16903.15358 | H19: =H18*(H10-T_)/(U235_-T_) -> 12853.14965 | I19: kg | J19: Product*(%E-%T)/(%U235-%T)
B20: U3O8 Feed | C20: Feed_Ore | D20: =D19/(U_ore/100) -> 23086.59009 | E20: =E19/(D15/100) -> 51793.52867 | F20: =F19/(U_ore/100) -> 11933.27123 | G20: =G19/(U_ore/100) -> 19933.68584 | H20: =H19/(U_ore/100) -> 15157.56488 | I20: kg | J20: Feed/%U_ore
B21: Tailings | C21: Tailings | D21: =Product*(D10-U235_)/(U235_-T_) -> 49028.37451 | E21: =Product*(Enrichment-U235_)/(U235_-T_) -> 42165.98043 | F21: =F18*(F10-U235_)/(U235_-T_) -> 9781.084656 | G21: =G18*(G10-U235_)/(U235_-T_) -> 16456.77056 | H21: =H18*(H10-U235_)/(U235_-T_) -> 11258.98473 | I21: kg | J21: Product*(%E-%U235)/(%U235-%T) | K21: Must equal to sum of stage tailings
B22: Enrichment Value Function | C22: V(%E) | D22: =(1-2*D10/100)*LN((1-D10/100)/(D10/100)) -> 1.214220739 | E22: =(1-2*Enrichment/100)*LN((1-Enrichment/100)/(Enrichment/100)) -> 1.406709483 | F22: =(1-2*F10/100)*LN((1-F10/100)/(F10/100)) -> 1.170178942 | G22: =(1-2*G10/100)*LN((1-G10/100)/(G10/100)) -> 0.8615282975 | H22: =(1-2*H10/100)*LN((1-H10/100)/(H10/100)) -> 2.830107952 | J22: (1-2*%E/100)*LN[(1-%E/100)/(%E/100)]
B23: Tailings Value Function | C23: V(%T) | D23: =(1-2*T_/100)*LN((1-T_/100)/(T_/100)) -> 6.187755671 | E23: =(1-2*T_/100)*LN((1-T_/100)/(T_/100)) -> 6.187755671 | F23: =(1-2*T_/100)*LN((1-T_/100)/(T_/100)) -> 6.187755671 | G23: =(1-2*T_/100)*LN((1-T_/100)/(T_/100)) -> 6.187755671 | H23: =(1-2*T_/100)*LN((1-T_/100)/(T_/100)) -> 6.187755671 | J23: (1-2*%T/100)*LN[(1-%T/100)/(%T/100)]
B24: Feed Value Function | C24: V(%U235) | D24: =(1-2*U235_/100)*LN((1-U235_/100)/(U235_/100)) -> 4.868883386 | E24: =(1-2*U235_/100)*LN((1-U235_/100)/(U235_/100)) -> 4.868883386 | F24: =(1-2*U235_/100)*LN((1-U235_/100)/(U235_/100)) -> 4.868883386 | G24: =(1-2*U235_/100)*LN((1-U235_/100)/(U235_/100)) -> 4.868883386 | H24: =(1-2*U235_/100)*LN((1-U235_/100)/(U235_/100)) -> 4.868883386 | J24: (1-2*%U235/100)*LN[(1-%U235/100)/(%U235/100)]
B25: Separative Work Units | C25: SWU | D25: =D18*D22+D21*D23-D19*D24 -> 208879.561 | E25: =Product*V__E+Tailings*V__T-Feed*V__U235 -> 49541.16914 | F25: =F18*F22+F21*F23-F19*F24 -> 11649.97636 | G25: =G18*G22+G21*G23-G19*G24 -> 19915.56332 | H25: =H18*H22+H21*H23-H19*H24 -> 11599.01864 | I25: kg SWU | J25: Product*V(%E)+Tailings*V(%T)-Feed*V(%U235)
B26: Stage 2: Solved by total and isotopic mass balances up to 10% enrichment
B27: LEU Enrichment | C27: %E_LEU | D27: 10 | H27: =H10 -> 4.32 | I27: %
B28: Uranium Product | C28: Product | D28: =D29*(U235_-T_)/(E_LEU-T_) -> 1020.786092 | E28: =E29*(U235_-T_)/(E_LEU-T_) -> 2290.078939 | F28: =F29*(U235_-T_)/(E_LEU-T_) -> 527.6360544 | G28: =G29*(U235_-T_)/(E_LEU-T_) -> 881.3787223 | H28: =H29*(U235_-T_)/(H27-T_) -> 1594.16492 | I28: kg | J28: Feed*(%U235-%T)/(%E_LEU-%T)
B29: Uranium Feed | C29: Feed | D29: =D19 -> 19576.71958 | E29: =Feed -> 43919.32211 | F29: =F19 -> 10119.04762 | G29: =G19 -> 16903.15358 | H29: =H19 -> 12853.14965 | I29: kg | K29: Is equal to global feed
B30: Tailings | C30: Tailings | D30: =D29*(E_LEU-U235_)/(E_LEU-T_) -> 18555.93348 | E30: =E29*(E_LEU-U235_)/(E_LEU-T_) -> 41629.24318 | F30: =F29*(E_LEU-U235_)/(E_LEU-T_) -> 9591.411565 | G30: =G29*(E_LEU-U235_)/(E_LEU-T_) -> 16021.77486 | H30: =H29*(H27-U235_)/(H27-T_) -> 11258.98473 | I30: kg | J30: Feed*(%E_LEU-%U235)/(%E_LEU-%T)
B31: Enrichment Value Function | C31: V(%E) | D31: =(1-2*E_LEU/100)*LN((1-E_LEU/100)/(E_LEU/100)) -> 1.757779662 | E31: =(1-2*E_LEU/100)*LN((1-E_LEU/100)/(E_LEU/100)) -> 1.757779662 | F31: =(1-2*E_LEU/100)*LN((1-E_LEU/100)/(E_LEU/100)) -> 1.757779662 | G31: =(1-2*E_LEU/100)*LN((1-E_LEU/100)/(E_LEU/100)) -> 1.757779662 | H31: =(1-2*H27/100)*LN((1-H27/100)/(H27/100)) -> 2.830107952 | J31: (1-2*%E/100)*LN[(1-%E/100)/(%E/100)]
B32: Tailings Value Function | C32: V(%T) | D32: =(1-2*T_/100)*LN((1-T_/100)/(T_/100)) -> 6.187755671 | E32: =(1-2*T_/100)*LN((1-T_/100)/(T_/100)) -> 6.187755671 | F32: =(1-2*T_/100)*LN((1-T_/100)/(T_/100)) -> 6.187755671 | G32: =(1-2*T_/100)*LN((1-T_/100)/(T_/100)) -> 6.187755671 | H32: =(1-2*T_/100)*LN((1-T_/100)/(T_/100)) -> 6.187755671 | J32: (1-2*%T/100)*LN[(1-%T/100)/(%T/100)]
B33: Feed Value Function | C33: V(%U235) | D33: =(1-2*U235_/100)*LN((1-U235_/100)/(U235_/100)) -> 4.868883386 | E33: =(1-2*U235_/100)*LN((1-U235_/100)/(U235_/100)) -> 4.868883386 | F33: =(1-2*U235_/100)*LN((1-U235_/100)/(U235_/100)) -> 4.868883386 | G33: =(1-2*U235_/100)*LN((1-U235_/100)/(U235_/100)) -> 4.868883386 | H33: =(1-2*U235_/100)*LN((1-U235_/100)/(U235_/100)) -> 4.868883386 | J33: (1-2*%U235/100)*LN[(1-%U235/100)/(%U235/100)]
B34: Separative Work Units | C34: SWU | D34: =D28*D31+D30*D32-D29*D33 -> 21297.13499 | E34: =E28*E31+E30*E32-E29*E33 -> 47778.98198 | F34: =F28*F31+F30*F32-F29*F33 -> 11008.3164 | G34: =G28*G31+G30*G32-G29*G33 -> 18388.6142 | H34: =H28*H31+H30*H32-H29*H33 -> 11599.01864 | I34: kg SWU | J34: Product*V(%E)+Tailings*V(%T)-Feed*V(%U235)
B35: Stage 3: Solved by total and isotopic mass balances from 10% to HALEU enrichment
B36: Uranium Product | C36: Product | D36: =D12*12/D11 -> 675.9259259 | E36: =E12*12/FCL -> 1753.341688 | F36: =F12*12/F11 -> 337.962963 | G36: =G12*12/G11 -> 446.3830221 | H36: =H12*12/H11 -> 1594.16492 | I36: kg | K36: Is equal to global product
B37: Uranium Feed | C37: Feed | D37: =D36*(D10-T_)/(E_LEU-T_) -> 1020.786092 | E37: =E36*(Enrichment-T_)/(E_LEU-T_) -> 2290.078939 | F37: =F36*(F10-T_)/(E_LEU-T_) -> 527.6360544 | G37: =G36*(G10-T_)/(E_LEU-T_) -> 881.3787223 | H37: =H36*(H10-T_)/(H27-T_) -> 1594.16492 | I37: kg | J37: Product*(%E-%T)/(%U235-%T)
B38: Tailings | C38: Tailings | D38: =D36*(D10-E_LEU)/(E_LEU-T_) -> 344.8601663 | E38: =E36*(Enrichment-E_LEU)/(E_LEU-T_) -> 536.7372513 | F38: =F36*(F10-E_LEU)/(E_LEU-T_) -> 189.6730915 | G38: =G36*(G10-E_LEU)/(E_LEU-T_) -> 434.9957001 | H38: =H36*(H10-H27)/(H27-T_) -> 0 | I38: kg | J38: Product*(%E-%U235)/(%U235-%T)
B39: Enrichment Value Function | C39: V(%E) | D39: =(1-2*D10/100)*LN((1-D10/100)/(D10/100)) -> 1.214220739 | E39: =(1-2*Enrichment/100)*LN((1-Enrichment/100)/(Enrichment/100)) -> 1.406709483 | F39: =(1-2*F10/100)*LN((1-F10/100)/(F10/100)) -> 1.170178942 | G39: =(1-2*G10/100)*LN((1-G10/100)/(G10/100)) -> 0.8615282975 | H39: =(1-2*H10/100)*LN((1-H10/100)/(H10/100)) -> 2.830107952 | J39: (1-2*%E/100)*LN[(1-%E/100)/(%E/100)]
B40: Tailings Value Function | C40: V(%T) | D40: =(1-2*T_/100)*LN((1-T_/100)/(T_/100)) -> 6.187755671 | E40: =(1-2*T_/100)*LN((1-T_/100)/(T_/100)) -> 6.187755671 | F40: =(1-2*T_/100)*LN((1-T_/100)/(T_/100)) -> 6.187755671 | G40: =(1-2*T_/100)*LN((1-T_/100)/(T_/100)) -> 6.187755671 | H40: =(1-2*T_/100)*LN((1-T_/100)/(T_/100)) -> 6.187755671 | J40: (1-2*%T/100)*LN[(1-%T/100)/(%T/100)]
B41: Feed Value Function | C41: V(%U235) | D41: =(1-2*E_LEU/100)*LN((1-E_LEU/100)/(E_LEU/100)) -> 1.757779662 | E41: =(1-2*E_LEU/100)*LN((1-E_LEU/100)/(E_LEU/100)) -> 1.757779662 | F41: =(1-2*E_LEU/100)*LN((1-E_LEU/100)/(E_LEU/100)) -> 1.757779662 | G41: =(1-2*E_LEU/100)*LN((1-E_LEU/100)/(E_LEU/100)) -> 1.757779662 | H41: =(1-2*H27/100)*LN((1-H27/100)/(H27/100)) -> 2.830107952 | J41: (1-2*%U235/100)*LN[(1-%U235/100)/(%U235/100)]
B42: Separative Work Units | C42: SWU | D42: =D36*D39+D38*D40-D37*D41 -> 1160.316695 | E42: =E36*E39+E38*E40-E37*E41 -> 1762.187167 | F42: =F36*F39+F38*F40-F37*F41 -> 641.6599646 | G42: =G36*G39+G38*G40-G37*G41 -> 1526.949123 | H42: =H36*H39+H38*H40-H37*H41 -> 0 | I42: kg SWU | J42: Product*V(%E)+Tailings*V(%T)-Feed*V(%U235)
B43: Annual Fuel Costs
B44: Uranium Ore Unit Cost | C44: U_ore_$_kg | D44: =28.2*2.2 -> 62.04 | I44: $/kg | K44: UxC (February 22, 2021)
B45: Uranium Ore (U3O8) | C45: U_ore_cost | D45: =U_ore___kg*D20 -> 1432292.049 | E45: =Feed_Ore*U_ore___kg -> 3213270.519 | F45: =F20*U_ore___kg -> 740340.147 | G45: =G20*U_ore___kg -> 1236685.87 | H45: =H20*U_ore___kg -> 940375.3254 | I45: $
B46: Uranium Conversion Unit Cost | C46: UF6_$_kg | D46: 21 | I46: $/kg | K46: UxC (February 22, 2021)
B47: Uranium Conversion | C47: UF6_cost | D47: =UF6___kg*D20 -> 484818.3919 | E47: =Feed_Ore*UF6___kg -> 1087664.102 | F47: =F20*UF6___kg -> 250598.6958 | G47: =G20*UF6___kg -> 418607.4027 | H47: =H20*UF6___kg -> 318308.8626 | I47: $
B48: Uranium Enrichment Unit Cost (LEU) | C48: U_enrich_$_kg | D48: 54 | I48: $/kgSWU | K48: UxC (February 22, 2021)
B49: Uranium Enrichment (LEU) | C49: U_enrich_cost | D49: =U_enrich___kg*D34 -> 1150045.29 | E49: =SWU_LEU*U_enrich___kg -> 2580065.027 | F49: =F34*U_enrich___kg -> 594449.0855 | G49: =G34*U_enrich___kg -> 992985.1666 | H49: =H34*U_enrich___kg -> 626347.0067 | I49: $
B50: HALEU Enrichment Multiplier | D50: 50 | K50: Assume 50x normal for Cat II facility relative to Cat III
B51: Uranium Enrichment Unit Cost (HALEU) | C51: U_enrich_$_kg | D51: =D50*U_enrich___kg -> 2700 | I51: $/kgSWU
B52: Uranium Enrichment (HALEU) | C52: U_enrich_cost | D52: =D51*D42 -> 3132855.076 | E52: =SWU_HALEU*D51 -> 4757905.352 | F52: =F42*D51 -> 1732481.904 | G52: =G42*D51 -> 4122762.633 | H52: =H42*D51 -> 0 | I52: $
B53: Tails Disposal Unit Cost | C53: Tails_$_kg | D53: 11 | I53: $/kg | K53: HTGR cost assessment (pg 42)
B54: Tails Disposal | C54: Tails_cost | D54: =Tails___kg*D21 -> 539312.1196 | E54: =Tailings*Tails___kg -> 463825.7847 | F54: =F21*Tails___kg -> 107591.9312 | G54: =G21*Tails___kg -> 181024.4761 | H54: =H21*Tails___kg -> 123848.832 | I54: $
B55: Fuel Fabrication Multiplier | D55: 1 | E55: 1 | F55: 10 | G55: 10 | H55: 1 | K55: Metal fuel is same as oxide; TRISO is 10x LWR
B56: Fuel Fabrication Unit Cost | C56: FuelFab_$_kg | D56: =D55*400 -> 400 | E56: =E55*400 -> 400 | F56: =F55*400 -> 4000 | G56: 4000 | H56: =H55*400 -> 400 | I56: $/kg | K56: ANL Fuel Cycle Algorithm (pg 105)
B57: Fuel Fabrication | C57: FuelFab_cost | D57: =D18*FuelFab___kg -> 270370.3704 | E57: =Product*FuelFab___kg -> 701336.675 | F57: =F18*F56 -> 1351851.852 | G57: =G18*G56 -> 1785532.089 | H57: =H18*H56 -> 637665.9679 | I57: $
B58: Spent Fuel Storage | C58: SNF_$_kg | D58: =233*1.24 -> 288.92 | I58: $/kg | K58: HTGR cost assessment (pg 42)
B59: Spent Fuel Disposition | C59: SNF_cost | D59: =SNF___kg*D18 -> 195288.5185 | E59: =SNF___kg*Product -> 506575.4804 | F59: =SNF___kg*F18 -> 97644.25926 | G59: =SNF___kg*G18 -> 128968.9828 | H59: =SNF___kg*H18 -> 460586.1286 | I59: $
B60: Total Fuel Cost | D60: =SUM(D45,D47,D49,D52,D54,D57,D59) -> 7204981.815 | E60: =SUM(E45,E47,E49,E52,E54,E57,E59) -> 13310642.94 | F60: =SUM(F45,F47,F49,F52,F54,F57,F59) -> 4874957.875 | G60: 8866566.619 | H60: =SUM(H45,H47,H49,H52,H54,H57,H59) -> 3107132.123 | I60: $
B61: Specific Fuel Cost | D61: =D60/D18 -> 10659.42515 | E61: =E60/Product -> 7591.585276 | F61: =F60/F18 -> 14424.53289 | G61: =G60/G18 -> 19863.13587 | H61: =H60/H18 -> 1949.065674 | I61: $/kg
B62: Specific Fuel Cost | D62: =D61/(D4*24*D6/100*D8/100) -> 0.01233729763 | E62: =E61/(BU*24*eff/100*CF/100) -> 0.01321286772 | F62: =F61/(F4*24*F6/100*F8/100) -> 0.01043441326 | G62: =G61/(G4*24*G6/100*G8/100) -> 0.01084462649 | H62: =H61/(H4*24*H6/100*H8/100) -> 0.006909651581 | I62: $/kWh
D63: =100*D62 -> 1.233729763 | E63: =100*E62 -> 1.321286772 | F63: =100*F62 -> 1.043441326 | G63: 1.084462649 | H63: =100*H62 -> 0.6909651581 | I63: c/kWh
B64: LWR Fuel Cost (comparison) | G64: 0.65 | I64: c/kWh

Sheet Reprocesed Fuel Costs (hidden)
B1: Description | C1: Symbol | D1: Value | I1: Unit | J1: Equation/Assumption | K1: Source
B2: Vendor | D2: Baseline | E2: Terrapower | F2: X-Energy | G2: Kairos Power | H2: Nuscale
B3: Burnup | C3: BU | D3: 100000 | E3: 70000 | F3: ='HALEU Fuel Costs'!F4 -> 160000 | G3: ='HALEU Fuel Costs'!G4 -> 193600 | H3: ='HALEU Fuel Costs'!H4 -> 42400 | I3: MWd/MT
B4: Electric Power | C4: P_e | D4: 200 | E4: 345 | F4: ='HALEU Fuel Costs'!F5 -> 80 | G4: ='HALEU Fuel Costs'!G5 -> 140 | H4: ='HALEU Fuel Costs'!H5 -> 77 | I4: MW
B5: Efficiency | C5: eff | D5: 40 | E5: 38 | F5: ='HALEU Fuel Costs'!F6 -> 40 | G5: ='HALEU Fuel Costs'!G6 -> 43.8 | H5: ='HALEU Fuel Costs'!H6 -> 30.8 | I5: %
B6: Thermal Power | C6: P_th | D6: =D4/(D5/100) -> 500 | E6: =P_e/(eff/100) -> 907.8947368 | F6: ='HALEU Fuel Costs'!F7 -> 200 | G6: ='HALEU Fuel Costs'!G7 -> 319.6347032 | H6: ='HALEU Fuel Costs'!H7 -> 250 | I6: MW
B7: Capacity Factor | C7: CF | D7: 90 | E7: 90 | F7: ='HALEU Fuel Costs'!F8 -> 90 | G7: ='HALEU Fuel Costs'!G8 -> 90 | H7: ='HALEU Fuel Costs'!H8 -> 90 | I7: %
B8: Average Uranium Loading | C8: Loading | D8: =D6/D3*365*1000/(D7/100) -> 2027.777778 | E8: =P_th/BU*365*1000/0.9 -> 5260.025063 | F8: ='HALEU Fuel Costs'!F9 -> 506.9444444 | G8: ='HALEU Fuel Costs'!G9 -> 669.5745332 | H8: ='HALEU Fuel Costs'!H9 -> 2391.247379 | I8: kg
B9: Average Fuel Enrichment | C9: %E | D9: ='HALEU Fuel Costs'!D10 -> 15 | E9: 13 | F9: ='HALEU Fuel Costs'!F10 -> 15.5 | G9: ='HALEU Fuel Costs'!G10 -> 19.55 | H9: ='HALEU Fuel Costs'!H10 -> 4.32 | I9: %
B10: Fuel Cycle Length | C10: FCL | D10: 36 | E10: 36 | F10: ='HALEU Fuel Costs'!F11 -> 18 | G10: ='HALEU Fuel Costs'!G11 -> 18 | H10: ='HALEU Fuel Costs'!H11 -> 18 | I10: months
B11: Mass of Heavy Metal per Refueling Segment | D11: =D8 -> 2027.777778 | E11: =E8 -> 5260.025063 | F11: ='HALEU Fuel Costs'!F12 -> 506.9444444 | G11: ='HALEU Fuel Costs'!G12 -> 669.5745332 | H11: ='HALEU Fuel Costs'!H12 -> 2391.247379 | I11: kg
B12: Uranium in Tailings | C12: %T | D12: ='HALEU Fuel Costs'!T_ -> 0.2 | I12: %
B13: U-235 in Natural Uranium | C13: %U235 | D13: ='HALEU Fuel Costs'!U235_ -> 0.711 | I13: %
B14: Uranium in U3O8 | C14: %U_ore | D14: ='HALEU Fuel Costs'!U_ore -> 84.79692974 | I14: % | J14: 3*mass_U/(3*mass_U+8*mass_O)
B15: Annual Uranium Requirement
B16: Solved by total and isotopic mass balances
B17: Uranium Product | C17: Product | D17: =D11*12/D10 -> 675.9259259 | E17: =E11*12/FCL -> 1753.341688 | F17: =F11*12/F10 -> 337.962963 | G17: =G11*12/G10 -> 446.3830221 | H17: =H11*12/H10 -> 1594.16492 | I17: kg
B18: Uranium Feed | C18: Feed | E18: =Product*(Enrichment-T_)/(U235_-T_) -> 43919.32211 | I18: kg | J18: Product*(%E-%T)/(%U235-%T)
B19: U3O8 Feed | C19: Feed_Ore | E19: =E18/(D14/100) -> 51793.52867 | I19: kg | J19: Feed/%U_ore
B20: Tailings | C20: Tailings | E20: =Product*(Enrichment-U235_)/(U235_-T_) -> 42165.98043 | I20: kg | J20: Product*(%E-%U235)/(%U235-%T)
B21: Enrichment Value Function | C21: V(%E) | E21: =(1-2*Enrichment/100)*LN((1-Enrichment/100)/(Enrichment/100)) -> 1.406709483 | J21: (1-2*%E/100)*LN[(1-%E/100)/(%E/100)]
B22: Tailings Value Function | C22: V(%T) | E22: =(1-2*T_/100)*LN((1-T_/100)/(T_/100)) -> 6.187755671 | J22: (1-2*%T/100)*LN[(1-%T/100)/(%T/100)]
B23: Feed Value Function | C23: V(%U235) | E23: =(1-2*U235_/100)*LN((1-U235_/100)/(U235_/100)) -> 4.868883386 | J23: (1-2*%U235/100)*LN[(1-%U235/100)/(%U235/100)]
B24: Separative Work Units | C24: SWU | E24: =Product*V__E+Tailings*V__T-Feed*V__U235 -> 49541.16914 | I24: kg SWU | J24: Product*V(%E)+Tailings*V(%T)-Feed*V(%U235)
B25: Plutonium Equivalent
B26: Plutonium in LWR UNF | C26: Pu_LWR | D26: 11.7 | I26: kg/tU
B27: Fissile Pu ratio | C27: Pu-f/Pu_LWR | D27: =0.65 -> 0.65 | J27: LWR UNF has 1.17%Pu at BU. Pu-239 at 0.5% and P-241 at 0.15%. LWR fuel at 50GWd/MT burnup; | K27: (OECD/NEA-6997)
B28: Pu_f in LWR UNF | D28: =D26*D27 -> 7.605 | I28: kg/tU
B29: Reprocessing throughput requirement (annual) | D29: =D17/D28*D9/100 -> 13.33187231 | E29: =Product/D28*Enrichment/100 -> 29.97165278 | F29: =F17/D28*F9/100 -> 6.888134025 | G29: =G17/D28*G9/100 -> 11.47506651 | H29: =H17/D28*H9/100 -> 9.055611378 | I29: tU | J29: Product/Pu_f,LWR*%E
B30: Reprocessing Facility Cost
B31: Facility CAPEX | C31: CAPEX | D31: =IF(Summary!E2="Pyroprocessing", 'Pyro Reprocessing Costs'!F28*1000, 0)+IF(Summary!E2="Aqueous", 'Aqueous Reprocessing Costs'!D31*1000, 0)+IF(Summary!E2="Other/Generic", 'Aqueous Reprocessing Costs'!D31*1000, 0) -> 6964704273 | I31: $
B32: Facility OPEX fraction | D32: 5 | I32: % | J32: Reasonable range between 4-7% (for aq. Only)
B33: Facility OPEX (Annual) | C33: OPEX | D33: =IF(Summary!E2="Pyroprocessing", 'Pyro Reprocessing Costs'!F41*1000, 0)+IF(Summary!E2="Aqueous", 'Aqueous Reprocessing Costs'!D44*1000, 0)+IF(Summary!E2="Other/Generic", 'Aqueous Reprocessing Costs'!D44*1000, 0) -> 348270040.7 | I33: $
B34: Lifetime | C34: t | D34: 50 | I34: yrs
B35: Discount rate | C35: r | D35: 5 | I35: % | J35: Assume
B36: Ammortized CAPEX (Annual) | C36: CAPEX_annual | D36: =-PMT(D35/100,D34,D31) -> 381503763.7 | I36: $
B37: Total Annual Cost | C37: Cost | D37: =D36+D33 -> 729773804.4 | I37: $
B38: Throughput | C38: Capacity | D38: =Throughput -> 200 | I38: MTHM/yr | J38: Assume
B39: Fuel Reprocessing Unit Cost | C39: Repro_$_kg | D39: =(D37)/D38/1000 -> 3648.869022 | I39: $/kg
B40: Annual Fuel Costs
B41: Uranium Ore Unit Cost | C41: U_ore_$_kg | D41: =28.2*2.2 -> 62.04 | I41: $/kg | K41: UxC (February 22, 2021)
B42: Uranium Ore (U3O8) | C42: U_ore_cost | E42: =Feed_Ore*U_ore___kg*0 -> 0 | F42: =F19*U_ore___kg*0 -> 0 | G42: =Feed_Ore*U_ore___kg*0 -> 0 | I42: $ | J42: Not needed
B43: Uranium Conversion Unit Cost | C43: UF6_$_kg | D43: 21 | I43: $/kg | K43: UxC (February 22, 2021)
B44: Uranium Conversion | C44: UF6_cost | E44: =Feed_Ore*UF6___kg*0 -> 0 | F44: =F19*UF6___kg*0 -> 0 | G44: =Feed_Ore*UF6___kg*0 -> 0 | I44: $ | J44: Not needed
B45: Uranium Enrichment Unit Cost | C45: U_enrich_$_kg | D45: 54 | I45: $/kgSWU | K45: UxC (February 22, 2021)
B46: Uranium Enrichment | C46: U_enrich_cost | E46: =SWU*U_enrich___kg*0 -> 0 | F46: =F24*U_enrich___kg*0 -> 0 | G46: =SWU*U_enrich___kg*0 -> 0 | I46: $ | J46: Not needed
B47: Tails Disposal Unit Cost | C47: Tails_$_kg | D47: =-11 -> -11 | I47: $/kg | K47: HTGR cost assessment (pg 42)
B48: Tails Depletion | C48: Tails_deplet | D48: =D17*(1-D9/(100*D28/10))*Tails___kg -> -5968.679231 | E48: =Product*(1-Enrichment/(100*D28/10))*Tails___kg -> -15989.87676 | F48: =F17*(1-F9/(100*D28/10))*Tails___kg -> -2959.89785 | G48: =G17*(1-G9/(100*D28/10))*Tails___kg -> -3647.955927 | H48: =H17*(1-H9/(100*D28/10))*Tails___kg -> -16539.69686 | I48: $ | J48: Becomes offset since consuming; Product*(1-%E/Pu_f,LWR)
B49: Fuel Fabrication Multiplier | C49: FuelFab_mult | D49: =IF(Summary!E4="U/TRU", 1.4, 1) -> 1 | E49: =IF(Summary!E4="U/TRU",1.4,1) -> 1 | F49: =IF(Summary!E4="U/TRU",1.4,1) -> 1 | G49: =IF(Summary!E4="U/TRU",1.4,1) -> 1 | H49: =IF(Summary!E4="U/TRU",1.4,1) -> 1 | J49: Accounts for additional cost of fabrication; 1x if U/Pu; 1.4x if TRU | K49: Depends whether MOX or just U (pg. 12)
B50: Fuel Fabrication Unit Cost | C50: FuelFab_$_kg | D50: =1000*D49 -> 1000 | E50: =1000*E49 -> 1000 | F50: =2.5*'HALEU Fuel Costs'!F56*F49 -> 10000 | G50: =2.5*'HALEU Fuel Costs'!G56*G49 -> 10000 | H50: =2.5*'HALEU Fuel Costs'!H56*H49 -> 1000 | I50: $/kg | J50: (U,PU)Ox has 2.5x fabrication cost relative to LWR UOx | K50: ANL Fuel Cycle Algorithm (pg 105)
B51: Fuel Fabrication | C51: FuelFab_cost | D51: =Product*FuelFab___kg -> 1753341.688 | E51: =Product*FuelFab___kg -> 1753341.688 | F51: =F17*F50 -> 3379629.63 | G51: =G17*G50 -> 4463830.221 | H51: =H17*H50 -> 1594164.92 | I51: $ | K51: Depends whether MOX or just U (pg. 12)
B52: Fuel Reprocessing Unit Cost | C52: Repro_$_kg | D52: =D39 -> 3648.869022 | I52: $/kg
B53: Fuel Reprocessing | C53: Repro_cost | D53: =Repro___kg*D29*1000 -> 48646255.86 | E53: =Repro___kg*E29*1000 -> 109362635.4 | F53: =Repro___kg*F29*1000 -> 25133898.86 | G53: =Repro___kg*G29*1000 -> 41871014.72 | H53: =Repro___kg*H29*1000 -> 33042739.83 | I53: $
B54: Spent Fuel Storage | C54: SNF_$_kg | D54: =233*1.24 -> 288.92 | I54: $/kg | K54: HTGR cost assessment (pg 42)
B55: Spent Fuel Disposition | C55: SNF_cost | D55: =SNF___kg*D17 -> 195288.5185 | E55: =D54*Product -> 506575.4804 | F55: =SNF___kg*F17 -> 97644.25926 | G55: =SNF___kg*G17 -> 128968.9828 | H55: =SNF___kg*H17 -> 460586.1286 | I55: $
B56: Total Fuel Cost | D56: =SUM(D42,D44,D46,D48,D51,D53,D55) -> 50588917.39 | E56: =SUM(E42,E44,E46,E48,E51,Repro_cost,E55) -> 111606562.7 | F56: =SUM(F42,F44,F46,F48,F51,F53,F55) -> 28608212.85 | G56: =SUM(G42,G44,G46,G48,G51,G53,G55) -> 46460165.97 | H56: =SUM(H42,H44,H46,H48,H51,H53,H55) -> 35080951.18 | I56: $
B57: Specific Fuel Cost | D57: =D56/D17 -> 74843.87778 | E57: =E56/Product -> 63653.62978 | F57: =F56/F17 -> 84648.95858 | G57: =G56/G17 -> 104081.3912 | H57: =H56/H17 -> 22005.84817 | I57: $/kg
B58: Specific Fuel Cost | D58: =D57/(D3*24*D5/100*D7/100) -> 0.08662485854 | E58: =E57/(BU*24*eff/100*CF/100) -> 0.1107867408 | F58: =F57/(F3*24*F5/100*F7/100) -> 0.06123333231 | G58: =G57/(G3*24*G5/100*G7/100) -> 0.05682505623 | H58: =H57/(H3*24*H5/100*H7/100) -> 0.07801314531 | I58: $/kWh
D59: =D58*100 -> 8.662485854 | E59: =E58*100 -> 11.07867408 | F59: =F58*100 -> 6.123333231 | G59: =G58*100 -> 5.682505623 | H59: =H58*100 -> 7.801314531 | I59: c/kWh
B60: HALEU Costs (Comparison) | D60: ='HALEU Fuel Costs'!D63 -> 1.233729763 | E60: ='HALEU Fuel Costs'!E63 -> 1.321286772 | F60: ='HALEU Fuel Costs'!F63 -> 1.043441326 | G60: ='HALEU Fuel Costs'!G63 -> 1.084462649 | H60: ='HALEU Fuel Costs'!H63 -> 0.6909651581 | I60: c/kWh

Sheet Annual cap vs O&M (hidden)
A1: Througput | B1: 200 | D1: 800
A2: TCC | B2: 542000000 | D2: =D10*D1*1000/(D7+D4/(1-(1+D4)^-D3)) -> 1.246841671e+10
A3: time | B3: 50 | D3: 50
A4: i | B4: 0.03 | D4: 0.05
A5: Annual cap | B5: =-PMT(B4,B3,B2) -> 21065097.99 | D5: =-PMT(D4,D3,D2) -> 682979164.3
A6: Annual cap spec | B6: =B5/(1000*B1) -> 105.3254899 | C6: kg | D6: =D5/(D1*1000) -> 853.7239554
A7: O&M fraction | B7: =B8/B2 -> 0.3247232472 | D7: 0.05
A8: Annual O&M | B8: 176000000 | D8: =D2*D7 -> 623420835.7 | E8: Back-calculate split between specific annual capital and annual O&M based on O&M as set percentage of TCC.
A9: Annual O&M spec | B9: =B8/(1000*B1) -> 880 | C9: kg | D9: =D10-D6 -> 779.2760446 | E9: Used to solve equation - https://superuser.com/questions/871404/what-would-be-the-the-mathematical-equivalent-of-this-excel-formula-pmt
A10: Total unit cost | B10: =B9+B6 -> 985.3254899 | C10: kg | D10: 1633 | E10: Is equal to = Annual unit capital + Annual unit O&M
E11: where Total annual cost = Total unit cost * throughput = Annual Capital + O&M_fraction*TCC
E12: where Total annual cost = Total unit cost * throughput = PMT(i,lifetime,TCC) + O&M_fraction*TCC
E13: where PMT = Annual Capital = (TCC*i)/(1-(1+i)^-lifetime)

Sheet Pyro Reprocessing Costs Calcs (hidden)
A1: Throughput (MT/yr) | B1: 100 | D1: 200 | F1: 400 | H1: Modified | I1: Percentage reduction | J1: Justification
B2: $K | C2: % | D2: $K | E2: % | F2: $K | G2: % | I2: (0-100%)
A3: Capital Costs
A4: Facility | B4: . | C4: .. | D4: … | E4: …. | F4: ..... | G4: …...
A5: Fuel processing facility | B5: 105679 | C5: =B5/$B$29*100 -> 26.5782895 | D5: 173785 | E5: =AVERAGE(C5,G5)*(1-I5/100) -> 27.78221638 | F5: 264200 | G5: =F5/$F$29*100 -> 28.98614326 | H5: No
A6: Protected Area Receiving | B6: 4580 | C6: 1.15187091 | D6: 6742 | E6: 1.077871887 | F6: 9150 | G6: 1.003872865 | H6: No
A7: Waste Storage Facility | B7: 9150 | C7: 2.301226818 | D7: 19756 | E7: 3.158359138 | F7: 36600 | G7: 4.015491459 | H7: No
A8: Lab & Operations Bldg | B8: 22388 | C8: 5.630586448 | D8: 32976 | E8: 5.271764638 | F8: 44780 | G8: 4.912942829 | H8: No
A9: Maintenance & Mockup | B9: 11288 | C9: 2.838934243 | D9: 16624 | E9: 2.657576988 | F9: 22570 | G9: 2.476219733 | H9: No
A10: Utility Building | B10: 15623 | C10: 3.929187604 | D10: 23012 | E10: 3.678857574 | F10: 31250 | G10: 3.428527543 | H10: No
A11: Warehouse & Staging | B11: 4948 | C11: 1.244422983 | D11: 7286 | E11: 1.16474169 | F11: 9890 | G11: 1.085060397 | H11: No
A12: Generator Bldg | B12: 3192 | C12: 0.8027886342 | D12: 5798 | E12: 0.926919019 | F12: 9580 | G12: 1.051049404 | H12: No
A13: Emergency Op Center | B13: 7791 | C13: 1.959438048 | D13: 8805 | E13: 1.407599261 | F13: 7800 | G13: 0.8557604748 | H13: No
A14: Fire Station | B14: 3954 | C14: 0.9944317856 | D14: 4469 | E14: 0.714447398 | F14: 3960 | G14: 0.4344630103 | H14: No
A15: Site Work | B15: 34032 | C15: 8.559054762 | D15: 50127 | E15: 8.013605299 | F15: 68070 | G15: 7.468155836 | H15: No
A16: Physical Protection System | B16: 30120 | C16: 7.575185984 | D16: 49531 | E16: 7.918282977 | F16: 75300 | G16: 8.261379969 | H16: No
A17: Design Engineering | B17: 45904 | C17: 11.54486512 | D17: 67612 | E17: 10.80880238 | F17: 91810 | G17: 10.07273964 | H17: No
A18: Process Equipment & Support | B18: . | C18: .. | D18: … | E18: …. | F18: ..... | G18: …...
A19: Process Equipment | B19: 27381 | C19: =B19/$B$29*100 -> 6.88632694 | D19: 40037 | E19: =AVERAGE(C19,G19) -> 6.400474188 | F19: 53910 | G19: =F19/$F$29*100 -> 5.914621436 | H19: No
A20: Transfer Locks & F-T | B20: 12636 | C20: 3.177956511 | D20: 19372 | E20: 3.09698181 | F20: 27490 | G20: 3.016007109 | H20: No
A21: Overhead Lifting & Robotics | B21: 29259 | C21: 7.358644313 | D21: 43635 | E21: 6.975645678 | F21: 60090 | G21: 6.592647043 | H21: No
A22: Electrical Systems | B22: 2814 | C22: 0.7077215591 | D22: 6077 | E22: 0.9715443018 | F22: 11260 | G22: 1.235367044 | H22: No
A23: Monitoring & Control System | B23: 5600 | C23: 1.408401113 | D23: 12091 | E23: 1.932984828 | F23: 22400 | G23: 2.457568543 | H23: No
A24: MC&A | B24: 1288 | C24: 0.3239322559 | D24: 2780 | E24: 0.4444767975 | F24: 5150 | G24: 0.5650213392 | H24: No
A25: Safeguards & Security Eqpmt | B25: 5806 | C25: 1.460210154 | D25: 8506 | E25: 1.359857016 | F25: 11480 | G25: 1.259503878 | H25: No
A26: Analytic Lab Eqpmt | B26: 4750 | C26: 1.194625944 | D26: 10256 | E26: 1.639585345 | F26: 19000 | G26: 2.084544746 | H26: No
A27: Licensing Support | B27: 6000 | C27: 1.509001192 | D27: 8837 | E27: 1.412777884 | F27: 12000 | G27: 1.316554577 | H27: No
A28: Start-up Materials | B28: 3431 | C28: 0.8628971817 | D28: 7410 | E28: 1.184627522 | F28: 13730 | G28: 1.506357861 | H28: No
A29: Total | B29: =SUM(B5:B28) -> 397614 | C29: =SUM(C5:C28) -> 100 | D29: =SUM(D5:D28) -> 625524 | E29: =SUM(E5:E28) -> 100 | F29: =SUM(F5:F28) -> 911470 | G29: 100
A30: Facility Lifetime | B30: 50 | D30: 50 | F30: 50
A31: Discount Rate | B31: 5 | D31: 5 | F31: 5
A32: Annualized Capital | B32: =-PMT(B31/100,B30,B29) -> 21779.9969 | D32: =-PMT(D31/100,D30,D29) -> 34264.16269 | F32: =-PMT(F31/100,F30,F29) -> 49927.35109
A33: Specific Annualized Capital | B33: =B32/B1 -> 217.799969 | D33: =D32/D1 -> 171.3208134 | F33: =F32/F1 -> 124.8183777
A34: Annual Operating Costs | B34: . | C34: .. | D34: … | E34: …. | F34: ..... | G34: …...
A35: Staffing | B35: 41790 | C35: =B35/$B$41*100 -> 78.66352941 | D35: 53477 | E35: =AVERAGE(C35,G35) -> 70.69843137 | F35: 56460 | G35: =F35/$F$41*100 -> 62.73333333 | H35: No
A36: Materials & Services | B36: 4180 | C36: =B36/$B$41*100 -> 7.868235294 | D36: 5039 | E36: =AVERAGE(C36,G36) -> 6.661895425 | F36: 4910 | G36: =F36/$F$41*100 -> 5.455555556 | H36: No | R36: `
A37: Process Chemicals | B37: 579 | C37: 1.089882353 | D37: 1387 | E37: 1.833830065 | F37: 2320 | G37: 2.577777778 | H37: No
A38: Spare Parts | B38: 120 | C38: 0.2258823529 | D38: 287 | E38: 0.3796078431 | F38: 480 | G38: 0.5333333333 | H38: No
A39: Product & Waste Containers | B39: 5472 | C39: 10.30023529 | D39: 13094 | E39: 17.31122876 | F39: 21890 | G39: 24.32222222 | H39: No
A40: Utilities | B40: 984 | C40: 1.852235294 | D40: 2356 | E40: =AVERAGE(C40,G40) -> 3.115006536 | F40: 3940 | G40: 4.377777778 | H40: No
A41: Total | B41: =SUM(B35:B40) -> 53125 | C41: 100 | D41: =SUM(D35:D40) -> 75640 | E41: =SUM(E35:E40) -> 100 | F41: =SUM(F35:F40) -> 90000 | G41: 100
A42: Specific Cost | B42: =B41/B1 -> 531.25 | D42: =D41/D1 -> 378.2 | F42: =F41/F1 -> 225
A43: Specific Cap and Op Cost | B43: =B33+B42 -> 749.049969 | D43: =D33+D42 -> 549.5208134 | F43: =F33+F42 -> 349.8183777
A60: Data based on Pyroprocessing (ANL/NE-Landmark-CRADA-12)
A61: Target specific CAPEX+OPEX costs are estimated via logarithmic relationship between 100 and 400 MT facilities.
A62: Target total costs are then backcalculated and relative average cost percentages are applied to each category.

Sheet Reprocesed Fuel Costs Original (hidden)
B1: Description | C1: Symbol | D1: Value | H1: Unit | I1: Equation/Assumption | J1: Source
B2: Vendor | D2: Baseline | E2: Terrapower | F2: X-Energy | G2: Kairos Power
B3: Burnup | C3: BU | D3: 100000 | E3: 70000 | F3: ='HALEU Fuel Costs'!F4 -> 160000 | G3: ='HALEU Fuel Costs'!G4 -> 193600 | H3: MWd/MT
B4: Electric Power | C4: P_e | D4: 200 | E4: 345 | F4: ='HALEU Fuel Costs'!F5 -> 80 | G4: ='HALEU Fuel Costs'!G5 -> 140 | H4: MW
B5: Efficiency | C5: eff | D5: 40 | E5: 38 | F5: ='HALEU Fuel Costs'!F6 -> 40 | G5: ='HALEU Fuel Costs'!G6 -> 43.8 | H5: %
B6: Thermal Power | C6: P_th | D6: =D4/(D5/100) -> 500 | E6: =P_e/(eff/100) -> 907.8947368 | F6: ='HALEU Fuel Costs'!F7 -> 200 | G6: ='HALEU Fuel Costs'!G7 -> 319.6347032 | H6: MW
B7: Capacity Factor | C7: CF | D7: 90 | E7: 90 | F7: ='HALEU Fuel Costs'!F8 -> 90 | G7: ='HALEU Fuel Costs'!G8 -> 90 | H7: %
B8: Average Uranium Loading | C8: Loading | D8: =D6/D3*365*1000/(D7/100) -> 2027.777778 | E8: =P_th/BU*365*1000/0.9 -> 5260.025063 | F8: ='HALEU Fuel Costs'!F9 -> 506.9444444 | G8: ='HALEU Fuel Costs'!G9 -> 669.5745332 | H8: kg
B9: Average Fuel Enrichment | C9: %E | D9: ='HALEU Fuel Costs'!D10 -> 15 | E9: 13 | F9: ='HALEU Fuel Costs'!F10 -> 15.5 | G9: ='HALEU Fuel Costs'!G10 -> 19.55 | H9: %
B10: Fuel Cycle Length | C10: FCL | D10: 36 | E10: 36 | F10: ='HALEU Fuel Costs'!F11 -> 18 | G10: ='HALEU Fuel Costs'!G11 -> 18 | H10: months
B11: Mass of Heavy Metal per Refueling Segment | D11: =D8 -> 2027.777778 | E11: =E8 -> 5260.025063 | F11: ='HALEU Fuel Costs'!F12 -> 506.9444444 | G11: ='HALEU Fuel Costs'!G12 -> 669.5745332 | H11: kg
B12: Uranium in Tailings | C12: %T | D12: ='HALEU Fuel Costs'!T_ -> 0.2 | H12: %
B13: U-235 in Natural Uranium | C13: %U235 | D13: ='HALEU Fuel Costs'!U235_ -> 0.711 | H13: %
B14: Uranium in U3O8 | C14: %U_ore | D14: ='HALEU Fuel Costs'!U_ore -> 84.79692974 | H14: % | I14: 3*mass_U/(3*mass_U+8*mass_O)
B15: Annual Uranium Requirement
B16: Solved by total and isotopic mass balances
B17: Uranium Product | C17: Product | D17: =D11*12/D10 -> 675.9259259 | E17: =E11*12/FCL -> 1753.341688 | F17: =F11*12/F10 -> 337.962963 | G17: =G11*12/G10 -> 446.3830221 | H17: kg
B18: Uranium Feed | C18: Feed | E18: =Product*(Enrichment-T_)/(U235_-T_) -> 43919.32211 | H18: kg | I18: Product*(%E-%T)/(%U235-%T)
B19: U3O8 Feed | C19: Feed_Ore | E19: =E18/(D14/100) -> 51793.52867 | H19: kg | I19: Feed/%U_ore
B20: Tailings | C20: Tailings | E20: =Product*(Enrichment-U235_)/(U235_-T_) -> 42165.98043 | H20: kg | I20: Product*(%E-%U235)/(%U235-%T)
B21: Enrichment Value Function | C21: V(%E) | E21: =(1-2*Enrichment/100)*LN((1-Enrichment/100)/(Enrichment/100)) -> 1.406709483 | I21: (1-2*%E/100)*LN[(1-%E/100)/(%E/100)]
B22: Tailings Value Function | C22: V(%T) | E22: =(1-2*T_/100)*LN((1-T_/100)/(T_/100)) -> 6.187755671 | I22: (1-2*%T/100)*LN[(1-%T/100)/(%T/100)]
B23: Feed Value Function | C23: V(%U235) | E23: =(1-2*U235_/100)*LN((1-U235_/100)/(U235_/100)) -> 4.868883386 | I23: (1-2*%U235/100)*LN[(1-%U235/100)/(%U235/100)]
B24: Separative Work Units | C24: SWU | E24: =Product*V__E+Tailings*V__T-Feed*V__U235 -> 49541.16914 | H24: kg SWU | I24: Product*V(%E)+Tailings*V(%T)-Feed*V(%U235)
B25: Plutonium Equivalent
B26: Plutonium in LWR UNF | C26: Pu_LWR | D26: 11.7 | H26: kg/tU
B27: Fissile Pu ratio | C27: Pu-f/Pu_LWR | D27: =0.65 -> 0.65 | I27: LWR UNF has 1.17%Pu at BU. Pu-239 at 0.5% and P-241 at 0.15%. LWR fuel at 50GWd/MT burnup; | J27: (OECD/NEA-6997)
B28: Pu_f in LWR UNF | D28: =D26*D27 -> 7.605 | H28: kg/tU
B29: Reprocessing throughput requirement (annual) | D29: =D17/D28*D9/100 -> 13.33187231 | E29: =Product/D28*Enrichment/100 -> 29.97165278 | F29: =F17/D28*F9/100 -> 6.888134025 | G29: =G17/D28*G9/100 -> 11.47506651 | H29: tU | I29: Product/Pu_f,LWR*%E
B30: Reprocessing Facility Cost
B31: Facility CAPEX | C31: CAPEX | D31: 700000000 | H31: $
B32: Facility OPEX fraction | D32: 5 | H32: %
B33: Facility OPEX (Annual) | C33: OPEX | D33: =D31*D32/100 -> 35000000 | H33: $
B34: Lifetime | C34: t | D34: 50 | H34: yrs
B35: Discount rate | C35: r | D35: 5 | H35: % | I35: Assume
B36: Ammortized CAPEX (Annual) | C36: CAPEX_annual | D36: =-PMT(D35/100,D34,D31) -> 38343714.84 | H36: $
B37: Total Annual Cost | C37: Cost | D37: =D36+D33 -> 73343714.84 | H37: $
B38: Throughput | C38: Capacity | D38: 200 | H38: MTHM/yr | I38: Assume
B39: Fuel Reprocessing Unit Cost | C39: Repro_$_kg | D39: =(D36+D37)/D38/1000 -> 558.4371484 | H39: $/kg
B40: Annual Fuel Costs
B41: Uranium Ore Unit Cost | C41: U_ore_$_kg | D41: =28.2*2.2 -> 62.04 | H41: $/kg | J41: UxC (February 22, 2021)
B42: Uranium Ore (U3O8) | C42: U_ore_cost | E42: =Feed_Ore*U_ore___kg*0 -> 0 | F42: =F19*U_ore___kg*0 -> 0 | G42: =Feed_Ore*U_ore___kg*0 -> 0 | H42: $ | I42: Not needed
B43: Uranium Conversion Unit Cost | C43: UF6_$_kg | D43: 21 | H43: $/kg | J43: UxC (February 22, 2021)
B44: Uranium Conversion | C44: UF6_cost | E44: =Feed_Ore*UF6___kg*0 -> 0 | F44: =F19*UF6___kg*0 -> 0 | G44: =Feed_Ore*UF6___kg*0 -> 0 | H44: $ | I44: Not needed
B45: Uranium Enrichment Unit Cost | C45: U_enrich_$_kg | D45: 54 | H45: $/kgSWU | J45: UxC (February 22, 2021)
B46: Uranium Enrichment | C46: U_enrich_cost | E46: =SWU*U_enrich___kg*0 -> 0 | F46: =F24*U_enrich___kg*0 -> 0 | G46: =SWU*U_enrich___kg*0 -> 0 | H46: $ | I46: Not needed
B47: Tails Disposal Unit Cost | C47: Tails_$_kg | D47: =-11 -> -11 | H47: $/kg | J47: HTGR cost assessment (pg 42)
B48: Tails Depletion | C48: Tails_deplet | D48: =D17*(1-D9/(100*D28/10))*Tails___kg -> -5968.679231 | E48: =Product*(1-Enrichment/(100*D28/10))*Tails___kg -> -15989.87676 | F48: =F17*(1-F9/(100*D28/10))*Tails___kg -> -2959.89785 | G48: =G17*(1-G9/(100*D28/10))*Tails___kg -> -3647.955927 | H48: $ | I48: Becomes offset since consuming; Product*(1-%E/Pu_f,LWR)
B49: Fuel Fabrication Multiplier | C49: FuelFab_mult | D49: =IF(Summary!E4="TRU", 1.4, 1) -> 1 | E49: =IF(Summary!E4="TRU",1.4,1) -> 1 | F49: =IF(Summary!E4="TRU",1.4,1) -> 1 | G49: =IF(Summary!E4="TRU",1.4,1) -> 1 | I49: Accounts for additional cost of fabrication; 1x if U/Pu; 1.4x if TRU | J49: Depends whether MOX or just U (pg. 12)
B50: Fuel Fabrication Unit Cost | C50: FuelFab_$_kg | D50: =1000*D49 -> 1000 | E50: =1000*E49 -> 1000 | F50: =2.5*'HALEU Fuel Costs'!F56*F49 -> 10000 | G50: =2.5*'HALEU Fuel Costs'!G56*G49 -> 10000 | H50: $/kg | I50: (U,PU)Ox has 2.5x fabrication cost relative to LWR UOx | J50: ANL Fuel Cycle Algorithm (pg 105)
B51: Fuel Fabrication | C51: FuelFab_cost | D51: =Product*FuelFab___kg -> 1753341.688 | E51: =Product*FuelFab___kg -> 1753341.688 | F51: =F17*F50 -> 3379629.63 | G51: =G17*G50 -> 4463830.221 | H51: $ | J51: Depends whether MOX or just U (pg. 12)
B52: Fuel Reprocessing Unit Cost | C52: Repro_$_kg | D52: =D39 -> 558.4371484 | H52: $/kg
B53: Fuel Reprocessing | C53: Repro_cost | D53: =Repro___kg*D29*1000 -> 7445012.754 | E53: =Repro___kg*E29*1000 -> 16737284.31 | F53: =Repro___kg*F29*1000 -> 3846589.923 | G53: =Repro___kg*G29*1000 -> 6408103.421 | H53: $
B54: Spent Fuel Storage | C54: SNF_$_kg | D54: =233*1.24 -> 288.92 | H54: $/kg | J54: HTGR cost assessment (pg 42)
B55: Spent Fuel Disposition | C55: SNF_cost | D55: =SNF___kg*D17 -> 195288.5185 | E55: =D54*Product -> 506575.4804 | F55: =SNF___kg*F17 -> 97644.25926 | G55: =SNF___kg*G17 -> 128968.9828 | H55: $
B56: Total Fuel Cost | D56: =SUM(D42,D44,D46,D48,D51,D53,D55) -> 9387674.28 | E56: =SUM(E42,E44,E46,E48,E51,Repro_cost,E55) -> 18981211.6 | F56: =SUM(F42,F44,F46,F48,F51,F53,F55) -> 7320903.914 | G56: =SUM(G42,G44,G46,G48,G51,G53,G55) -> 10997254.67 | H56: $
B57: Specific Fuel Cost | D57: =D56/D17 -> 13888.614 | E57: =E56/Product -> 10825.7345 | F57: =F56/F17 -> 21661.85268 | G57: =G56/G17 -> 24636.36412 | H57: $/kg
B58: Specific Fuel Cost | D58: =D57/(D3*24*D5/100*D7/100) -> 0.01607478473 | E58: =E57/(BU*24*eff/100*CF/100) -> 0.01884178241 | F58: =F57/(F3*24*F5/100*F7/100) -> 0.01566974297 | G58: =G57/(G3*24*G5/100*G7/100) -> 0.01345065395 | H58: $/kWh
D59: =D58*100 -> 1.607478473 | E59: =E58*100 -> 1.884178241 | F59: =F58*100 -> 1.566974297 | G59: 1.345065395 | H59: c/kWh
B60: HALEU Costs (Comparison) | D60: ='HALEU Fuel Costs'!D63 -> 1.233729763 | E60: ='HALEU Fuel Costs'!E63 -> 1.321286772 | F60: ='HALEU Fuel Costs'!F63 -> 1.043441326 | G60: ='HALEU Fuel Costs'!G63 -> 1.084462649 | H60: c/kWh

Sheet Graphs (hidden)
A15: d

Sheet Fuel Cycle LCA (hidden)
A1: From Table I of "Greenhouse Gas Emissions From The Nuclear Fuel Cycle," M. Taylor, The Uranium Institue
A3: Nuclear Fuel Cycle Process | B3: Specific CO2 Emissions from Energy Consumed (kgCO2/kgUnat) | C3: Modified (kgCO2/kgUnat) | D3: Converted (g/kWh) | E3: Note
A4: Mining and Milling | B4: 47 | C4: 47 | D4: =C4*Feed_Ore/1000000/87609*1000 -> 0.02778591066
A5: Conversion | B5: 7 | C5: 7 | D5: =C5*Feed_Ore/1000000/87609*1000 -> 0.00413832712
A6: Enrichment | B6: 140 | C6: =B6/10 -> 14 | D6: =C6*Feed_Ore/1000000/87609*1000 -> 0.008276654241 | E6: Assumed gaseous diffusion. Centrifuge is 10-20x less energy intensive
A7: Fuel Fabrication | B7: 3 | C7: 3 | D7: =C7*Feed_Ore/1000000/87609*1000 -> 0.001773568766
A8: Total | B8: =SUM(B4:B7) -> 197 | C8: =SUM(C4:C7) -> 71 | D8: 0.04197446079
A10: Convert from kgCO2/kgUnat to kgCO2/kWh by diving U_ore feed in "LEU fuel costs" per Gwyr and subsequent conversion to kWh.
